fUSD/lending_fUSD_20240919
["ID","MTS","AMOUNT","RATE_DAILY","PERIOD"]
[338603109,1726763432093,-151.78,0.0001299,2]
[338603110,1726763432102,-150.01,0.00012999,2]
[338603111,1726763432112,-3202.0740332,0.00012999,2]
[338603112,1726763432121,-500.0,0.00012999,2]
[338603113,1726763432130,-500.0,0.00012999,2]
[338603114,1726763432139,-500.0,0.00012999,2]
[338603115,1726763432149,-500.0,0.00012999,2]
[338603116,1726763432159,-330.00866365,0.00012999,2]
[338603117,1726763432168,-500.0,0.00012999,2]
[338603118,1726763432178,-500.0,0.00012999,2]
[338603119,1726763432187,-287976.30063285,0.00013,2]
[338603120,1726763432198,-468.35778133,0.00013,2]
[338603121,1726763432213,-4949.97599785,0.00013,2]
[338603122,1726763432224,-1646.57731229,0.00013,2]
[338603133,1726763437686,-150.23271,0.0001287,2]
[338603134,1726763437696,-3202.0740332,0.00012999,2]
[338603135,1726763437705,-26209.34074237,0.00013,2]
[338603136,1726763437717,-471.39155754,0.00013,2]
[338603137,1726763437727,-765.41975306,0.00013,2]
[338603138,1726763437739,-410.70213987,0.00013,2]
[338603139,1726763437749,-56529.05701785,0.00013,2]
[338603140,1726763437764,-8323.234,0.00013,2]
[338603141,1726763437775,-500.0,0.00013,2]
[338603142,1726763437786,-5740.77834692,0.00013,2]
[338603143,1726763437803,-540.93369926,0.00013,2]
[338603144,1726763437814,-475.24399367,0.00013,2]
[338603145,1726763437825,-69959.40566592,0.00013,2]
[338603146,1726763437878,-61490.0685221,0.00013,2]
[338603147,1726763437890,-433.49260629,0.00013,2]
[338603148,1726763437901,-2757.58727979,0.00013,2]
[338603149,1726763437912,-612.18240239,0.00013,2]
[338603150,1726763437923,-313.27,0.00013,2]
[338603151,1726763437935,-254.99999,0.00013,2]
[338603152,1726763437947,-1523.97756194,0.00013,2]
[338603153,1726763437958,-461.67626012,0.00013,2]
[338603154,1726763437969,-1003.07311994,0.00013,2]
[338603156,1726763437981,-1893.1272692,0.00013,2]
[338603157,1726763437991,-659.75132017,0.00013,2]
[338603158,1726763438003,-1288.57708287,0.00013,2]
[338603159,1726763438016,-3962.55749776,0.00013,2]
[338603160,1726763438028,-1587.80147828,0.00013,2]
[338603161,1726763438037,-1522.21568285,0.00013,2]
[338603162,1726763438048,-799.5914014,0.00013,2]
[338603163,1726763438060,-742.40810395,0.00013,2]
[338603164,1726763438071,-597.24,0.00013,2]
[338603165,1726763438082,-888.51999758,0.00013,2]
[338603166,1726763438094,-284.7715908,0.00013,2]
[338603167,1726763438105,-22590.85096767,0.00013,2]
[338603174,1726763440033,-28332.41412583,0.00013,2]
[338603175,1726763440045,-530.86535505,0.00013,2]
[338603176,1726763440089,-52647.30552246,0.00013,2]
[338603177,1726763440099,-1000.0,0.00013,2]
[338603178,1726763440108,-1000.0,0.00013,2]
[338603179,1726763440117,-1000.0,0.00013,2]
[338603180,1726763440127,-1000.0,0.00013,2]
[338603181,1726763440136,-1000.0,0.00013,2]
[338603182,1726763440146,-1000.0,0.00013,2]
[338603184,1726763440155,-1000.0,0.00013,2]
[338603186,1726763440164,-577.27071446,0.00013,2]
[338603187,1726763440173,-497284.98105057,0.00013,2]
[338603200,1726763440312,-31093.1616788,0.00013,2]
[338603203,1726763440323,-255.42348,0.00013,2]
[338603205,1726763440334,-2537.5502186,0.00013,2]
[338603207,1726763440345,-1864.77512759,0.00013,2]
[338603255,1726763442641,-839.8882853,0.000128,2]
[338603256,1726763442653,-52.9925147,0.000128,2]
[338603257,1726763442662,-1324.74920819,0.00013,2]
[338603263,1726763442751,-5350.19999999,0.00013,2]
[338603264,1726763442764,-4675.74706937,0.00013,2]
[338603265,1726763442807,-411.7493109,0.00013,2]
[338603266,1726763442818,-2407.513137,0.00013,2]
[338603267,1726763442864,-400.30481951,0.00013,2]
[338603268,1726763442875,-500.0,0.00013,2]
[338603269,1726763443906,500.0,0.00022999,120]
[338603270,1726763444198,500.0,0.00022999,120]
[338603271,1726763444452,500.0,0.00022999,120]
[338603272,1726763444723,500.0,0.00022999,120]
[338603273,1726763444994,500.0,0.00022999,120]
[338603274,1726763445295,500.0,0.00022999,120]
[338603282,1726763445587,500.0,0.00022999,120]
[338603284,1726763445624,-3077.64182638,0.000128,2]
[338603285,1726763445636,-1834.85362429,0.000128,2]
[338603286,1726763445647,-1547.85894933,0.000128,2]
[338603287,1726763445657,-37552.51183917,0.00013,2]
[338603288,1726763445667,-383.87296915,0.00013,2]
[338603289,1726763445680,-29029.33550196,0.00013,2]
[338603290,1726763445691,-4666.27831828,0.00013,2]
[338603291,1726763445739,-717.12394233,0.00013,2]
[338603292,1726763445750,-6172.81784563,0.00013,2]
[338603293,1726763445762,-1529.65936875,0.00013,2]
[338603294,1726763445777,-295.25514135,0.00013,2]
[338603295,1726763445801,-352.88671724,0.00013,2]
[338603296,1726763445812,-2479.97084612,0.00013,2]
[338603297,1726763445824,-594.96858718,0.00013,2]
[338603299,1726763447120,292.92,0.00022999,120]
[338603300,1726763447133,-5651.79132101,0.00013,2]
[338603301,1726763447145,-615.64999999,0.00013,2]
[338603302,1726763447156,-6882.92088896,0.00013,2]
[338603303,1726763447167,-1741.01490028,0.00013,2]
[338603304,1726763447179,-1458.83968283,0.00013,2]
[338603305,1726763447190,-409.14193754,0.00013,2]
[338603306,1726763447201,-432.5,0.00013,2]
[338603339,1726763459139,500.0,0.00022999,120]
[338603340,1726763459409,500.0,0.00022999,120]
[338603341,1726763459674,500.0,0.00022999,120]
[338603342,1726763460044,230.63,0.00022999,120]
[338603343,1726763480385,500.0,0.00022999,120]
[338603344,1726763480686,197.32,0.00022999,120]
[338603345,1726763481837,500.0,0.00022999,120]
[338603346,1726763482119,500.0,0.00022999,120]
[338603347,1726763482415,500.0,0.00022999,120]
[338603348,1726763482845,473.31,0.00022999,120]
[338603349,1726763483341,500.0,0.00022999,120]
[338603350,1726763485360,500.0,0.00022999,120]
[338603351,1726763485516,500.0,0.00022999,120]
[338603352,1726763485642,268.82,0.00022999,120]
[338603353,1726763485796,500.0,0.00022999,120]
[338603354,1726763486066,500.0,0.00022999,120]
[338603355,1726763486320,201.33,0.00022999,120]
[338603356,1726763487859,500.0,0.00022999,120]
[338603357,1726763488269,242.83,0.00022999,120]
[338603358,1726763488765,500.0,0.00022999,120]
[338603359,1726763490234,500.0,0.00022999,120]
[338603360,1726763490457,500.0,0.00022999,120]
[338603361,1726763490727,500.0,0.00022999,120]
[338603362,1726763490773,150.0,0.00019891,120]
[338603363,1726763490998,500.0,0.00022999,120]
[338603364,1726763491273,500.0,0.00022999,120]
[338603365,1726763491537,327.06,0.00022999,120]
[338603366,1726763491994,542.97,0.00022999,120]
[338603367,1726763493816,500.0,0.00022999,120]
[338603368,1726763494088,500.0,0.00022999,120]
[338603369,1726763494214,500.0,0.00022999,120]
[338603370,1726763494371,500.0,0.00022999,120]
[338603371,1726763494486,500.0,0.00022999,120]
[338603372,1726763494639,416.53,0.00022999,120]
[338603373,1726763494742,500.0,0.00022999,120]
[338603374,1726763495031,500.0,0.00022999,120]
[338603375,1726763495311,500.0,0.00022999,120]
[338603376,1726763495617,500.0,0.00022999,120]
[338603377,1726763495915,208.96,0.00022999,120]
[338603378,1726763497675,500.0,0.00022999,120]
[338603379,1726763497982,188.93,0.00022999,120]
[338603380,1726763498199,563.51,0.00022999,120]
[338603381,1726763500518,500.0,0.00022999,120]
[338603382,1726763500731,500.0,0.00022999,120]
[338603383,1726763503367,500.0,0.00022999,120]
[338603384,1726763503642,500.0,0.00022999,120]
[338603385,1726763503946,244.86,0.00022999,120]
[338603386,1726763504746,500.0,0.00022999,120]
[338603387,1726763505004,500.0,0.00022999,120]
[338603388,1726763505608,500.0,0.00022999,120]
[338603389,1726763505886,500.0,0.00022999,120]
[338603390,1726763506164,226.18,0.00022999,120]
[338603391,1726763508245,500.0,0.00022999,120]
[338603392,1726763508402,500.0,0.00022999,120]
[338603393,1726763508813,500.0,0.00022999,120]
[338603394,1726763508880,330.0,0.00022999,120]
[338603395,1726763510273,500.0,0.00022999,120]
[338603396,1726763510356,500.0,0.00022999,120]
[338603397,1726763510554,500.0,0.00022999,120]
[338603398,1726763510825,500.0,0.00022999,120]
[338603399,1726763511100,500.0,0.00022999,120]
[338603400,1726763511142,500.0,0.00022999,120]
[338603401,1726763511258,500.0,0.00022999,120]
[338603402,1726763511391,500.0,0.00022999,120]
[338603403,1726763511494,500.0,0.00022999,120]
[338603404,1726763511648,440.54,0.00022999,120]
[338603405,1726763511692,500.0,0.00022999,120]
[338603406,1726763511796,616.65,0.00022999,120]
[338603407,1726763512132,500.0,0.00022999,120]
[338603408,1726763512324,500.0,0.00022999,120]
[338603409,1726763512517,500.0,0.00022999,120]
[338603410,1726763512797,319.4,0.00022999,120]
[338603411,1726763514066,500.0,0.00022999,120]
[338603412,1726763514517,500.0,0.00022999,120]
[338603413,1726763514827,500.0,0.00022999,120]
[338603414,1726763514932,191.34,0.00010959,2]
[338603415,1726763515098,343.11,0.00022999,120]
[338603416,1726763515145,500.0,0.00022999,120]
[338603417,1726763515468,429.72,0.00022999,120]
[338603418,1726763516337,500.0,0.00022999,120]
[338603419,1726763516650,208.5,0.00022999,120]
[338603420,1726763517814,500.0,0.00022999,120]
[338603421,1726763518922,300.0,0.00010959,2]
[338603422,1726763520489,150.0,0.00022999,120]
[338603423,1726763520803,150.0,0.00022999,120]
[338603424,1726763521076,150.0,0.00022999,120]
[338603425,1726763521259,500.0,0.00022999,120]
[338603426,1726763521370,150.0,0.00022999,120]
[338603427,1726763521554,500.0,0.00022999,120]
[338603428,1726763521599,500.0,0.00022999,120]
[338603429,1726763521662,150.0,0.00022999,120]
[338603430,1726763522006,150.0,0.00022999,120]
[338603431,1726763522055,180.06,0.00012579,2]
[338603432,1726763522166,162.87,0.00022999,120]
[338603433,1726763522612,150.0,0.00022999,120]
[338603434,1726763522875,150.0,0.00022999,120]
[338603435,1726763523158,150.0,0.00022999,120]
[338603436,1726763523425,150.0,0.00022999,120]
[338603437,1726763523701,150.0,0.00022999,120]
[338603438,1726763523820,500.0,0.00022999,120]
[338603439,1726763524013,150.0,0.00022999,120]
[338603440,1726763524146,500.0,0.00022999,120]
[338603441,1726763524270,150.0,0.00022999,120]
[338603442,1726763524444,500.0,0.00022999,120]
[338603443,1726763524562,221.1,0.00022999,120]
[338603444,1726763524732,500.0,0.00022999,120]
[338603445,1726763525005,500.0,0.00022999,120]
[338603446,1726763525629,500.0,0.00022999,120]
[338603447,1726763525903,500.0,0.00022999,120]
[338603448,1726763525982,500.0,0.00022999,120]
[338603449,1726763526165,374.96,0.00022999,120]
[338603450,1726763526729,500.0,0.00022999,120]
[338603451,1726763526992,500.0,0.00022999,120]
[338603452,1726763527272,500.0,0.00022999,120]
[338603453,1726763527550,500.0,0.00022999,120]
[338603454,1726763527879,500.0,0.00022999,120]
[338603455,1726763528143,500.0,0.00022999,120]
[338603456,1726763528302,500.0,0.00022999,120]
[338603457,1726763528464,500.0,0.00022999,120]
[338603458,1726763528722,500.0,0.00022999,120]
[338603459,1726763528906,500.0,0.00022999,120]
[338603460,1726763528981,500.0,0.00022999,120]
[338603461,1726763529193,500.0,0.00022999,120]
[338603462,1726763529258,500.0,0.00022999,120]
[338603463,1726763529502,500.0,0.00022999,120]
[338603464,1726763529649,279.0,0.00022999,120]
[338603465,1726763529791,500.0,0.00022999,120]
[338603466,1726763530070,500.0,0.00022999,120]
[338603467,1726763530181,500.0,0.00022999,120]
[338603468,1726763530396,500.0,0.00022999,120]
[338603469,1726763530747,500.0,0.00022999,120]
[338603470,1726763531022,500.0,0.00022999,120]
[338603471,1726763531354,642.12,0.00022999,120]
[338603472,1726763532171,500.0,0.00022999,120]
[338603473,1726763532459,500.0,0.00022999,120]
[338603474,1726763532829,500.0,0.00022999,120]
[338603475,1726763532991,500.0,0.00022999,120]
[338603476,1726763533282,233.83,0.00022999,120]
[338603477,1726763537836,500.0,0.00022999,120]
[338603478,1726763541764,11941.8047,0.00012656,2]
[338603479,1726763543943,500.0,0.00022999,120]
[338603480,1726763544262,542.44,0.00022999,120]
[338603481,1726763548545,500.0,0.00022999,120]
[338603482,1726763548812,500.0,0.00022999,120]
[338603483,1726763549092,323.77,0.00022999,120]
[338603484,1726763549818,500.0,0.00022999,120]
[338603485,1726763551177,500.0,0.00022999,120]
[338603486,1726763558958,500.0,0.00022999,120]
[338603487,1726763560880,500.0,0.00022999,120]
[338603488,1726763561155,500.0,0.00022999,120]
[338603489,1726763561432,500.0,0.00022999,120]
[338603490,1726763561718,500.0,0.00022999,120]
[338603491,1726763561987,500.0,0.00022999,120]
[338603492,1726763562272,623.83,0.00022999,120]
[338603493,1726763564480,500.0,0.00022999,120]
[338603494,1726763564735,267.53,0.00022999,120]
[338603495,1726763568380,500.0,0.00022999,120]
[338603496,1726763568642,500.0,0.00022999,120]
[338603497,1726763568932,344.3,0.00022999,120]
[338603498,1726763570342,500.0,0.00022999,120]
[338603499,1726763570620,500.0,0.00022999,120]
[338603500,1726763570884,471.32143384,0.00022999,120]
[338603501,1726763576809,212.15662031,0.00022999,120]
[338603502,1726763580849,1418.72515808,0.000127,2]
[338603503,1726763583122,500.0,0.00022999,120]
[338603504,1726763583171,500.0,0.00022999,120]
[338603505,1726763583438,500.0,0.00022999,120]
[338603506,1726763583514,500.0,0.00022999,120]
[338603507,1726763583726,500.0,0.00022999,120]
[338603508,1726763583783,500.0,0.00022999,120]
[338603509,1726763583999,500.0,0.00022999,120]
[338603510,1726763584048,493.55,0.00022999,120]
[338603511,1726763584428,500.0,0.00022999,120]
[338603512,1726763584572,500.0,0.00022999,120]
[338603513,1726763584902,256.64,0.00022999,120]
[338603514,1726763586134,551.76,0.00022999,120]
[338603515,1726763588172,500.0,0.00022999,120]
[338603516,1726763588967,500.0,0.00022999,120]
[338603517,1726763590175,500.0,0.00022999,120]
[338603518,1726763591078,500.0,0.00022999,120]
[338603519,1726763592170,640.78,0.00022999,120]
[338603520,1726763594949,500.0,0.00022999,120]
[338603521,1726763595312,500.0,0.00022999,120]
[338603522,1726763595784,500.0,0.00022999,120]
[338603523,1726763595825,500.0,0.00022999,120]
[338603524,1726763596088,500.0,0.00022999,120]
[338603525,1726763596355,500.0,0.00022999,120]
[338603526,1726763596641,500.0,0.00022999,120]
[338603527,1726763596938,500.0,0.00022999,120]
[338603528,1726763597312,500.0,0.00022999,120]
[338603529,1726763597578,500.0,0.00022999,120]
[338603530,1726763597890,500.0,0.00022999,120]
[338603531,1726763598187,287.99,0.00022999,120]
[338603532,1726763598466,500.0,0.00022999,120]
[338603533,1726763598757,519.22,0.00022999,120]
[338603534,1726763605999,500.0,0.00022999,120]
[338603535,1726763606255,500.0,0.00022999,120]
[338603536,1726763606532,500.0,0.00022999,120]
[338603537,1726763606808,498.5,0.00022999,120]
[338603538,1726763614494,511.93,0.00022999,120]
[338603539,1726763618190,500.0,0.00012598,2]
[338603540,1726763628820,150.0,0.00022986,120]
[338603541,1726763630066,500.0,0.00022999,120]
[338603542,1726763634172,500.0,0.00022999,120]
[338603543,1726763636503,500.0,0.00022999,120]
[338603544,1726763638169,182.5995416,0.000127,2]
[338603545,1726763650547,152.31,0.00013918,30]
[338603546,1726763654384,500.0,0.00022999,120]
[338603547,1726763667117,500.0,0.00022999,120]
[338603548,1726763667578,1000.0,0.00012579,2]
[338603549,1726763669115,500.0,0.00022999,120]
[338603550,1726763684406,583.56,0.00022999,120]
[338603551,1726763699905,1639.02264958,0.00012,2]
[338603552,1726763701057,500.0,0.00022999,120]
[338603553,1726763701392,513.2,0.00022999,120]
[338603554,1726763703155,503.73679787,0.0001264,2]
[338603555,1726763710858,500.0,0.00022999,120]
[338603556,1726763713010,500.0,0.00022999,120]
[338603557,1726763715387,500.0,0.00022999,120]
[338603558,1726763721080,500.0,0.00022999,120]
[338603559,1726763723233,500.0,0.00022999,120]
[338603560,1726763727560,515.22669546,0.00022999,120]
[338603561,1726763731725,284.21157374,0.00012699,2]
[338603562,1726763732810,500.0,0.00022999,120]
[338603563,1726763734839,500.0,0.00022999,120]
[338603564,1726763736711,284.21157372,0.000127,2]
[338603565,1726763741742,284.21157372,0.000127,2]
[338603566,1726763744965,500.0,0.00022999,120]
[338603567,1726763752443,500.0,0.00022999,120]
[338603568,1726763754465,387.00580196,0.00022999,120]
[338603569,1726763756477,500.0,0.00022999,120]
[338603570,1726763758514,500.0,0.00022999,120]
[338603571,1726763761088,500.0,0.00022999,120]
[338603572,1726763761340,500.0,0.00022999,120]
[338603573,1726763761618,500.0,0.00022999,120]
[338603574,1726763761924,500.0,0.00022999,120]
[338603575,1726763762204,500.0,0.00022999,120]
[338603576,1726763762468,371.62,0.00022999,120]
[338603577,1726763762604,500.0,0.00022999,120]
[338603578,1726763764712,500.0,0.00022999,120]
[338603579,1726763769006,564.20302673,0.00022,60]
[338603580,1726763769457,500.0,0.00022999,120]
[338603581,1726763769768,179.09,0.00022999,120]
[338603582,1726763771479,526.68744513,0.00022999,120]
[338603583,1726763777563,500.0,0.00022999,120]
[338603584,1726763784266,500.0,0.00022999,120]
[338603585,1726763784548,500.0,0.00022999,120]
[338603586,1726763784846,500.0,0.00022999,120]
[338603587,1726763785436,500.0,0.00022999,120]
[338603588,1726763785725,500.0,0.00022999,120]
[338603589,1726763785982,500.0,0.00022999,120]
[338603590,1726763786242,500.0,0.00022999,120]
[338603591,1726763786518,566.08,0.00022999,120]
[338603592,1726763787038,1155.52,0.00012672,2]
[338603593,1726763789330,500.0,0.00022999,120]
[338603594,1726763789624,500.0,0.00022999,120]
[338603595,1726763789883,500.0,0.00022999,120]
[338603596,1726763790132,500.0,0.00022999,120]
[338603597,1726763790387,500.0,0.00022999,120]
[338603598,1726763790608,357.66185409,0.00022999,120]
[338603599,1726763790651,500.0,0.00022999,120]
[338603600,1726763790931,500.0,0.00022999,120]
[338603601,1726763791190,509.73,0.00022999,120]
[338603602,1726763793196,500.0,0.00022999,120]
[338603603,1726763793591,500.0,0.00022999,120]
[338603604,1726763793736,500.0,0.00022999,120]
[338603605,1726763794016,500.0,0.00022999,120]
[338603606,1726763794275,500.0,0.00022999,120]
[338603607,1726763794554,500.0,0.00022999,120]
[338603608,1726763794838,500.0,0.00022999,120]
[338603609,1726763795183,604.63,0.00022999,120]
[338603610,1726763797301,500.0,0.00022999,120]
[338603611,1726763797418,500.0,0.00022999,120]
[338603612,1726763798129,500.0,0.00022999,120]
[338603613,1726763798427,500.0,0.00022999,120]
[338603614,1726763798696,475.78,0.00022999,120]
[338603615,1726763801008,532.68,0.00022999,120]
[338603616,1726763803246,500.0,0.00022999,120]
[338603617,1726763806098,500.0,0.00022999,120]
[338603618,1726763833742,500.0,0.00022999,120]
[338603619,1726763844989,500.0,0.00022999,120]
[338603620,1726763845413,500.0,0.00022999,120]
[338603621,1726763845596,500.0,0.00022999,120]
[338603622,1726763845889,376.43,0.00022999,120]
[338603623,1726763847997,500.0,0.00022999,120]
[338603624,1726763850315,716.0,0.00012672,2]
[338603625,1726763850359,500.0,0.00022999,120]
[338603626,1726763850661,176.46,0.00022999,120]
[338603627,1726763853424,500.0,0.00022999,120]
[338603628,1726763857478,500.0,0.00022999,120]
[338603629,1726763857752,500.0,0.00022999,120]
[338603630,1726763858066,500.0,0.00022999,120]
[338603631,1726763858381,500.0,0.00022999,120]
[338603632,1726763859027,500.0,0.00022999,120]
[338603633,1726763859321,321.07,0.00022999,120]
[338603634,1726763867695,500.0,0.00022999,120]
[338603635,1726763867943,183.01,0.00022999,120]
[338603636,1726763870082,500.0,0.00022999,120]
[338603637,1726763872281,500.0,0.00022999,120]
[338603638,1726763872548,500.0,0.00022999,120]
[338603639,1726763873176,289.03,0.00022999,120]
[338603640,1726763875423,500.0,0.00022999,120]
[338603641,1726763882230,500.0,0.00022999,120]
[338603642,1726763882484,474.79,0.00022999,120]
[338603643,1726763884552,500.0,0.00022999,120]
[338603644,1726763884685,500.0,0.00022999,120]
[338603645,1726763884834,500.0,0.00022999,120]
[338603646,1726763885105,482.61,0.00022999,120]
[338603647,1726763891007,500.0,0.00022999,120]
[338603648,1726763891255,269.31,0.00022999,120]
[338603649,1726763894533,500.0,0.00022999,120]
[338603650,1726763898514,500.0,0.00022999,120]
[338603651,1726763900887,500.0,0.00022999,120]
[338603652,1726763901492,636.03,0.00022999,120]
[338603653,1726763907908,500.0,0.00022999,120]
[338603654,1726763908372,477.1,0.00022999,120]
[338603655,1726763911098,459.53,0.00012579,2]
[338603656,1726763912399,500.0,0.00022999,120]
[338603657,1726763912665,500.0,0.00022999,120]
[338603658,1726763912972,500.0,0.00022999,120]
[338603659,1726763913236,500.0,0.00022999,120]
[338603660,1726763913507,331.17874266,0.00022999,120]
[338603661,1726763914258,170.21,0.00012579,2]
[338603662,1726763916298,500.0,0.00022999,120]
[338603663,1726763916565,500.0,0.00022999,120]
[338603664,1726763916839,384.47181104,0.00022999,120]
[338603665,1726763917550,250.0,0.00012579,2]
[338603666,1726763919670,584.57,0.00022999,120]
[338603667,1726763923175,500.0,0.00022999,120]
[338603668,1726763923477,372.73,0.00022999,120]
[338603669,1726763925769,500.0,0.00022999,120]
[338603670,1726763928034,500.0,0.00022999,120]
[338603671,1726763928329,398.58,0.00022999,120]
[338603672,1726763930334,500.0,0.00022999,120]
[338603673,1726763940421,500.0,0.00022999,120]
[338603674,1726763943331,643.80613698,0.00022999,120]
[338603675,1726763945689,500.0,0.00022999,120]
[338603676,1726763945956,272.17,0.00022999,120]
[338603677,1726763957443,500.0,0.00022999,120]
[338603678,1726763957732,500.0,0.00022999,120]
[338603679,1726763957999,500.0,0.00022999,120]
[338603680,1726763958339,455.43,0.00022999,120]
[338603681,1726763962225,500.0,0.00022999,120]
[338603682,1726763962497,500.0,0.00022999,120]
[338603683,1726763962806,500.0,0.00022999,120]
[338603684,1726763963094,259.63,0.00022999,120]
[338603685,1726763965217,500.0,0.00022999,120]
[338603686,1726763965497,160.42,0.00022999,120]
[338603687,1726763973594,500.0,0.00022999,120]
[338603688,1726763973887,500.0,0.00022999,120]
[338603689,1726763974151,265.34,0.00022999,120]
[338603690,1726763977301,250.0,0.00012605,2]
[338603691,1726763986080,500.0,0.00022999,120]
[338603692,1726763986358,500.0,0.00022999,120]
[338603693,1726763986631,500.0,0.00022999,120]
[338603694,1726763986915,298.15,0.00022999,120]
[338603695,1726764005334,162.78,0.00012741,2]
[338603696,1726764009313,500.0,0.00022999,120]
[338603697,1726764009562,500.0,0.00022999,120]
[338603698,1726764010000,500.0,0.00022999,120]
[338603699,1726764010272,500.0,0.00022999,120]
[338603700,1726764010534,350.75,0.00022999,120]
[338603702,1726764014956,500.0,0.00022999,120]
[338603703,1726764015247,534.65,0.00022999,120]
[338603704,1726764022419,500.0,0.00022999,120]
[338603705,1726764024468,500.0,0.00022999,120]
[338603706,1726764024758,500.0,0.00022999,120]
[338603707,1726764025071,500.0,0.00022999,120]
[338603708,1726764025366,500.0,0.00022999,120]
[338603709,1726764025643,500.0,0.00022999,120]
[338603710,1726764025947,500.0,0.00022999,120]
[338603711,1726764026228,476.15,0.00022999,120]
[338603712,1726764028311,500.0,0.00022999,120]
[338603713,1726764028606,500.0,0.00022999,120]
[338603714,1726764028888,500.0,0.00022999,120]
[338603715,1726764029189,500.0,0.00022999,120]
[338603716,1726764029476,500.0,0.00022999,120]
[338603717,1726764029752,500.0,0.00022999,120]
[338603718,1726764030031,500.0,0.00022999,120]
[338603719,1726764030315,500.0,0.00022999,120]
[338603720,1726764030590,359.65,0.00022999,120]
[338603721,1726764032519,499.39999994,0.00022999,120]
[338603722,1726764032583,500.0,0.00022999,120]
[338603723,1726764032890,500.0,0.00022999,120]
[338603724,1726764032924,500.0,0.00022999,120]
[338603725,1726764033169,500.0,0.00022999,120]
[338603726,1726764033435,500.0,0.00022999,120]
[338603727,1726764033472,500.0,0.00022999,120]
[338603728,1726764033688,500.0,0.00022999,120]
[338603729,1726764033762,391.78,0.00022999,120]
[338603730,1726764033947,500.0,0.00022999,120]
[338603731,1726764034136,500.0,0.00022999,120]
[338603732,1726764034220,500.0,0.00022999,120]
[338603733,1726764034511,500.0,0.00022999,120]
[338603734,1726764034827,500.0,0.00022999,120]
[338603735,1726764035455,500.0,0.00022999,120]
[338603736,1726764035793,225.96,0.00022999,120]
[338603737,1726764036285,2000.0,0.00012685,2]